fUST/lending_fUST_20250327
["ID","MTS","AMOUNT","RATE_DAILY","PERIOD"]
[356727509,1743042648133,-515.68594479,0.00032877,7]
[356727510,1743042648143,-515.68594479,0.00032877,7]
[356727511,1743042648152,-515.68594479,0.00032877,7]
[356727512,1743042648162,-515.68594479,0.00032877,7]
[356727513,1743042648172,-515.68594479,0.00032877,7]
[356727514,1743042648183,-515.68594479,0.00032877,7]
[356727515,1743042648192,-515.68594479,0.00032877,7]
[356727516,1743042648202,-515.68594479,0.00032877,7]
[356727517,1743042648271,-515.68594479,0.00032877,7]
[356727518,1743042648281,-515.68594479,0.00032877,7]
[356727519,1743042648290,-515.68594479,0.00032877,7]
[356727520,1743042648299,-515.68594479,0.00032877,7]
[356727521,1743042648309,-515.68594479,0.00032877,7]
[356727522,1743042648318,-515.68594479,0.00032877,7]
[356727523,1743042648328,-515.68594479,0.00032877,7]
[356727524,1743042648337,-515.68594479,0.00032877,7]
[356727525,1743042648347,-515.68594479,0.00032877,7]
[356727526,1743042648357,-515.68594479,0.00032877,7]
[356727527,1743042648367,-515.68594479,0.00032877,7]
[356727528,1743042648377,-515.68594479,0.00032877,7]
[356727529,1743042648387,-515.68594479,0.00032877,7]
[356727530,1743042648396,-515.68594479,0.00032877,7]
[356727531,1743042648406,-515.68594479,0.00032877,7]
[356727532,1743042648416,-515.68594479,0.00032877,7]
[356727533,1743042648426,-515.68594479,0.00032877,7]
[356727534,1743042648436,-515.68594479,0.00032877,7]
[356727535,1743042648447,-515.68594479,0.00032877,7]
[356727536,1743042648457,-515.68594479,0.00032877,7]
[356727537,1743042648467,-515.68594479,0.00032877,7]
[356727538,1743042648477,-515.68594479,0.00032877,7]
[356727539,1743042648487,-515.68594479,0.00032877,7]
[356727540,1743042648497,-515.68594479,0.00032877,7]
[356727541,1743042648507,-515.68594479,0.00032877,7]
[356727542,1743042648517,-515.68594479,0.00032877,7]
[356727543,1743042648526,-515.68594479,0.00032877,7]
[356727544,1743042648536,-515.68594479,0.00032877,7]
[356727545,1743042648545,-515.68594479,0.00032877,7]
[356727546,1743042648556,-515.68594479,0.00032877,7]
[356727547,1743042648566,-515.68594479,0.00032877,7]
[356727548,1743042648575,-515.68594479,0.00032877,7]
[356727549,1743042648585,-517.86874243,0.00032877,7]
[356727550,1743042648595,-517.86874243,0.00032877,7]
[356727551,1743042648605,-517.86874243,0.00032877,7]
[356727552,1743042648615,-517.86874243,0.00032877,7]
[356727553,1743042648625,-517.86874243,0.00032877,7]
[356727554,1743042648635,-517.86874243,0.00032877,7]
[356727555,1743042648644,-517.86874243,0.00032877,7]
[356727556,1743042648654,-517.86874243,0.00032877,7]
[356727557,1743042648664,-517.86874243,0.00032877,7]
[356727558,1743042648673,-517.86874243,0.00032877,7]
[356727559,1743042648683,-517.86874243,0.00032877,7]
[356727560,1743042648693,-517.86874243,0.00032877,7]
[356727561,1743042648703,-517.86874243,0.00032877,7]
[356727562,1743042648713,-517.86874243,0.00032877,7]
[356727563,1743042648723,-517.86874243,0.00032877,7]
[356727564,1743042648734,-517.86874243,0.00032877,7]
[356727565,1743042648743,-517.86874243,0.00032877,7]
[356727566,1743042648753,-517.86874243,0.00032877,7]
[356727567,1743042648764,-517.86874243,0.00032877,7]
[356727568,1743042648774,-517.86874243,0.00032877,7]
[356727569,1743042648784,-517.86874243,0.00032877,7]
[356727570,1743042648794,-517.86874243,0.00032877,7]
[356727571,1743042648804,-517.86874243,0.00032877,7]
[356727572,1743042648814,-517.86874243,0.00032877,7]
[356727573,1743042648824,-517.86874243,0.00032877,7]
[356727574,1743042648834,-517.86874243,0.00032877,7]
[356727575,1743042648844,-517.86874243,0.00032877,7]
[356727576,1743042648855,-178.38317671,0.00032877,2]
[356727577,1743042648865,-150.27,0.00032877,2]
[356727578,1743042648875,-150.27,0.00032877,2]
[356727579,1743042648885,-150.27,0.00032877,2]
[356727580,1743042648895,-200.49290307,0.00032877,2]
[356727581,1743042648906,-292.39349513,0.00032877,2]
[356727582,1743042648915,-150.27,0.00032877,2]
[356727583,1743042648925,-150.27,0.00032877,2]
[356727584,1743042648935,-150.56291514,0.00032877,2]
[356727585,1743042648944,-165.9006966,0.00032877,2]
[356727586,1743042648955,-500.0,0.00032877,2]
[356727587,1743042648964,-500.0,0.00032877,2]
[356727588,1743042648974,-500.0,0.00032877,2]
[356727589,1743042648984,-150.27,0.00032877,2]
[356727590,1743042648994,-150.27,0.00032877,2]
[356727591,1743042649004,-500.0,0.00032877,2]
[356727592,1743042649015,-150.27,0.00032877,2]
[356727593,1743042649024,-500.0,0.00032877,2]
[356727594,1743042649034,-168.24412292,0.00032877,2]
[356727595,1743042649043,-500.0,0.00032877,2]
[356727596,1743042649053,-565.0,0.00032877,2]
[356727597,1743042649063,-500.0,0.00032877,2]
[356727598,1743042649072,-500.0,0.00032877,2]
[356727599,1743042649086,-150.27,0.00032877,2]
[356727600,1743042649096,-500.0,0.00032877,2]
[356727601,1743042649106,-29506.22537102,0.00033,2]
[356727602,1743042649116,-8000.0,0.00033,30]
[356727603,1743042649127,-418.47884548,0.00033,7]
[356727604,1743042649137,-418.47884548,0.00033,30]
[356727605,1743042649147,-297.0,0.00033,2]
[356727606,1743042649158,-500.0,0.00033014,2]
[356727607,1743042649167,-500.0,0.00033014,2]
[356727608,1743042649178,-150.27,0.00033014,2]
[356727609,1743042649244,-150.27,0.00033014,2]
[356727610,1743042649255,-150.27,0.00033014,2]
[356727611,1743042649265,-150.27,0.00033014,2]
[356727612,1743042649275,-169.678645,0.00033014,2]
[356727613,1743042649285,-969.90556674,0.00033014,2]
[356727614,1743042649294,-500.0,0.00033014,2]
[356727615,1743042649304,-527.58009776,0.00033014,2]
[356727616,1743042649313,-150.27,0.00033014,2]
[356727617,1743042649323,-150.27,0.00033014,2]
[356727618,1743042649332,-500.0,0.00033014,2]
[356727619,1743042649343,-150.27,0.00033014,2]
[356727620,1743042649352,-500.0,0.00033014,2]
[356727621,1743042649361,-500.0,0.00033014,2]
[356727622,1743042649371,-565.0,0.00033014,2]
[356727623,1743042649381,-500.0,0.00033014,2]
[356727624,1743042649391,-500.0,0.00033014,2]
[356727625,1743042649401,-500.0,0.00033014,2]
[356727626,1743042649411,-500.0,0.00033151,2]
[356727627,1743042649420,-500.0,0.00033151,2]
[356727628,1743042649429,-199.80175142,0.00033151,2]
[356727629,1743042649439,-202.0175447,0.00033151,2]
[356727630,1743042649449,-199.85633477,0.00033151,2]
[356727631,1743042649459,-181.001276,0.00033151,2]
[356727632,1743042649472,-500.0,0.00033151,2]
[356727633,1743042649482,-150.27,0.00033151,2]
[356727634,1743042649491,-232.62000495,0.00033151,2]
[356727635,1743042649501,-506.15011958,0.00033151,2]
[356727636,1743042649510,-150.27,0.00033151,2]
[356727637,1743042649520,-500.0,0.00033151,2]
[356727638,1743042649530,-500.0,0.00033151,2]
[356727639,1743042649539,-565.0,0.00033151,2]
[356727640,1743042649548,-500.0,0.00033151,2]
[356727641,1743042649558,-500.0,0.00033151,2]
[356727642,1743042649567,-500.0,0.00033151,2]
[356727643,1743042649576,-2498.20952118,0.00033279,11]
[356727644,1743042649585,-500.0,0.00033288,2]
[356727645,1743042649598,-500.0,0.00033288,2]
[356727646,1743042649607,-500.0,0.00033288,2]
[356727647,1743042649616,-150.27,0.00033288,2]
[356727648,1743042649624,-150.27,0.00033288,2]
[356727649,1743042649633,-500.0,0.00033288,2]
[356727650,1743042649641,-500.0,0.00033288,2]
[356727651,1743042649665,-565.0,0.00033288,2]
[356727652,1743042649682,-500.0,0.00033288,2]
[356727653,1743042649701,-500.0,0.00033288,2]
[356727654,1743042649723,-500.0,0.00033288,2]
[356727655,1743042649741,-500.0,0.00033425,2]
[356727656,1743042649760,-500.0,0.00033425,2]
[356727657,1743042649776,-500.0,0.00033425,2]
[356727658,1743042649792,-156.9352793,0.00033425,2]
[356727659,1743042649811,-187.70860332,0.00033425,2]
[356727660,1743042649832,-500.0,0.00033425,2]
[356727661,1743042649847,-500.0,0.00033425,2]
[356727662,1743042649864,-565.0,0.00033425,2]
[356727663,1743042649880,-500.0,0.00033425,2]
[356727664,1743042649897,-500.0,0.00033425,2]
[356727665,1743042649910,-500.0,0.00033425,2]
[356727666,1743042649925,-606.06358459,0.00033562,2]
[356727667,1743042649939,-500.0,0.00033562,2]
[356727668,1743042649954,-500.0,0.00033562,2]
[356727669,1743042649970,-500.0,0.00033562,2]
[356727670,1743042649984,-774.65128182,0.00033562,2]
[356727671,1743042650000,-565.0,0.00033562,2]
[356727672,1743042650014,-500.0,0.00033562,2]
[356727673,1743042650029,-500.0,0.00033562,2]
[356727674,1743042650044,-500.0,0.00033562,2]
[356727675,1743042650058,-1000.0,0.0003357,6]
[356727676,1743042650073,-655.89068069,0.00033699,2]
[356727677,1743042650091,-500.0,0.00033699,2]
[356727678,1743042650106,-511.5812992,0.00033699,2]
[356727679,1743042650121,-565.0,0.00033699,2]
[356727680,1743042650136,-912.77676807,0.00033699,2]
[356727681,1743042650151,-559.63247206,0.00033699,2]
[356727682,1743042650166,-505.91539319,0.00033699,2]
[356727683,1743042650180,-1000.0,0.00033707,6]
[356727684,1743042650195,-500.0,0.00033707,7]
[356727685,1743042650210,-644.29804749,0.00033836,2]
[356727686,1743042650225,-565.0,0.00033836,2]
[356727687,1743042650239,-1000.0,0.00033844,6]
[356727688,1743042650253,-500.0,0.00033902,7]
[356727689,1743042650268,-150.0,0.00033905,14]
[356727690,1743042650279,-150.0,0.00033905,14]
[356727691,1743042650288,-565.0,0.00033973,2]
[356727692,1743042650388,-1000.0,0.00033981,6]
[356727693,1743042650402,-1000.0,0.00034,30]
[356727694,1743042650416,-2498.20952118,0.00034107,11]
[356727695,1743042650426,-565.0,0.0003411,2]
[356727696,1743042650435,-1000.0,0.00034118,6]
[356727697,1743042650446,-500.0,0.00034233,5]
[356727698,1743042650456,-565.0,0.00034247,2]
[356727699,1743042650465,-1000.0,0.00034255,6]
[356727700,1743042650475,-1502.48720038,0.00034371,5]
[356727701,1743042650484,-1500.0,0.00034371,5]
[356727702,1743042650494,-501.95611503,0.00034371,5]
[356727703,1743042650503,-1031.65684917,0.00034371,5]
[356727704,1743042650512,-1500.0,0.00034371,5]
[356727705,1743042650521,-565.0,0.00034384,2]
[356727706,1743042650530,-1000.0,0.00034392,6]
[356727707,1743042650540,-565.0,0.00034521,2]
[356727708,1743042650550,-1000.0,0.00034529,6]
[356727709,1743042650559,-565.0,0.00034658,2]
[356727710,1743042650569,-1000.0,0.00034666,6]
[356727711,1743042650578,-565.0,0.00034795,2]
[356727712,1743042650587,-1000.0,0.00034803,6]
[356727713,1743042650598,-565.0,0.00034932,2]
[356727714,1743042650609,-2498.20952118,0.00034934,12]
[356727715,1743042650619,-1000.0,0.0003494,6]
[356727716,1743042650630,-831.6597378,0.0003498,120]
[356727717,1743042650640,-150.0,0.00034989,2]
[356727718,1743042650648,-2000.0,0.00035,30]
[356727719,1743042650658,-2000.0,0.00035,2]
[356727720,1743042650668,-400.0,0.00035057,2]
[356727721,1743042650678,-541.0,0.00035057,2]
[356727722,1743042650687,-150.0,0.00035057,2]
[356727723,1743042650697,-565.0,0.00035069,2]
[356727724,1743042650707,-240.24683501,0.00035106,7]
[356727725,1743042650716,-200.0,0.000352,120]
[356727726,1743042650725,-565.0,0.00035206,2]
[356727727,1743042650735,-565.0,0.00035343,2]
[356727728,1743042650744,-568.22734852,0.0003548,2]
[356727729,1743042650753,-290.2,0.000355,2]
[356727730,1743042650762,-153.01383962,0.00035616,7]
[356727731,1743042650771,-222.76075387,0.00035616,2]
[356727732,1743042650780,-2498.20952118,0.00035762,12]
[356727733,1743042650790,-500.0,0.0003588,5]
[356727734,1743042650799,-500.0,0.00035889,7]
[356727735,1743042650809,-500.0,0.0003589,2]
[356727736,1743042650818,-2000.0,0.00036,30]
[356727737,1743042650827,-160809.13784815,0.00036,30]
[356727738,1743042650837,-66436.0,0.00036,120]
[356727739,1743042650846,-418.47884548,0.00036,120]
[356727740,1743042650855,-418.47884548,0.00036,30]
[356727741,1743042650865,-1082.13372374,0.00036,120]
[356727742,1743042650874,-169.74903137,0.00036,120]
[356727743,1743042650884,-297.0,0.00036,2]
[356727744,1743042650893,-500.0,0.0003602,7]
[356727745,1743042650902,-500.0,0.00036193,7]
[356727746,1743042650912,-156.792964,0.00036338,7]
[356727747,1743042650921,-152.18028317,0.00036356,30]
[356727748,1743042650930,-2498.20952118,0.0003659,13]
[356727749,1743042650940,-500.0,0.00036606,7]
[356727750,1743042650949,-596.75872328,0.00036804,7]
[356727751,1743042650959,-152.18028317,0.00036822,30]
[356727752,1743042650968,-187.427863,0.00036959,30]
[356727753,1743042650977,-187.427863,0.00036959,30]
[356727754,1743042650987,-500.0,0.00036966,7]
[356727755,1743042650996,-187.427863,0.00036986,30]
[356727756,1743042651005,-199.12467544,0.00037,20]
[356727757,1743042651015,-2006.43599019,0.00037112,2]
[356727758,1743042651024,-200.0,0.000372,120]
[356727759,1743042651033,-152.18028317,0.00037315,30]
[356727760,1743042651042,-187.427863,0.00037397,30]
[356727761,1743042651052,-187.427863,0.00037397,30]
[356727762,1743042651061,-172.5886568,0.00037397,30]
[356727763,1743042651071,-2498.20952118,0.00037417,13]
[356727764,1743042651084,-150.586655,0.0003745,7]
[356727765,1743042651095,-156.792964,0.0003745,7]
[356727766,1743042651104,-172.571642,0.0003745,7]
[356727767,1743042651114,-2214.175,0.00037739,7]
[356727768,1743042651125,-152.18028317,0.00037781,30]
[356727769,1743042651134,-170.0,0.00038,120]
[356727770,1743042651143,-400.0,0.00038057,2]
[356727771,1743042651156,-541.0,0.00038057,2]
[356727772,1743042651165,-150.0,0.00038057,2]
[356727773,1743042651174,-2498.20952118,0.00038245,14]
[356727774,1743042651183,-700.0,0.00038356,90]
[356727775,1743042651193,-700.0,0.00038356,90]
[356727776,1743042651203,-700.0,0.00038356,90]
[356727777,1743042651212,-813.59589536,0.00038356,90]
[356727778,1743042651222,-759.938681,0.00038356,60]
[356727779,1743042651231,-500.0,0.00038393,7]
[356727780,1743042651241,-10000.0,0.000385,30]
[356727781,1743042651250,-1000.0,0.00039,2]
[356727782,1743042651260,-1000.0,0.00039,2]
[356727783,1743042651269,-1000.0,0.00039,2]
[356727784,1743042651278,-1000.0,0.00039,2]
[356727785,1743042651287,-1000.0,0.00039,2]
[356727786,1743042651296,-1000.0,0.00039,2]
[356727787,1743042651307,-1000.0,0.00039,2]
[356727788,1743042651317,-1000.0,0.00039,2]
[356727789,1743042651326,-1000.0,0.00039,2]
[356727790,1743042651335,-1000.0,0.00039,2]
[356727791,1743042651347,-17574.79758424,0.00039,120]
[356727792,1743042651356,-73218.42356136,0.00039,10]
[356727793,1743042651366,-190.19625,0.00039006,14]
[356727794,1743042651376,-2498.20952118,0.00039072,15]
[356727795,1743042651386,-163.56932786,0.00039277,10]
[356727796,1743042651395,-150.0,0.0003942,14]
[356727797,1743042651404,-150.0,0.0003942,14]
[356727798,1743042651414,-1001.25157424,0.00039471,5]
[356727799,1743042651423,-1789.416,0.000395,50]
[356727800,1743042651433,-440.43879157,0.00039713,5]
[356727801,1743042651442,-1735.73118154,0.000398,30]
[356727802,1743042651453,-75506.59562186,0.00039888,30]
[356727803,1743042651506,200.0,0.00012,3]
[356727804,1743042651681,200.0,0.00012,3]
[356727805,1743042651730,201.67075,0.00012,3]
[356727810,1743043428626,49798.0,0.00025,120]
[356727811,1743043639147,-169.609698,0.00010959,2]
[356727812,1743043639170,-156.58,0.00010959,2]
[356727813,1743043639191,-782.94,0.00010959,2]
[356727814,1743043639213,-19.17994634,0.00012364,2]
[356727815,1743043651092,-649.92616996,0.00012364,2]
[356727816,1743043651115,-300.0,0.00012882,2]
[356727817,1743043651139,-181.99106213,0.00012883,2]
[356727818,1743043772136,-300.0,0.00012882,2]
[356727819,1743043772161,-8141.92464148,0.00012882,2]
[356727820,1743043772187,-318.00893787,0.00012883,2]
[356727821,1743043772208,-329.83408018,0.00012883,2]
[356727822,1743043772231,-500.0,0.00012883,2]
[356727823,1743043772254,-500.0,0.00012883,2]
[356727824,1743043772276,-500.0,0.00012883,2]
[356727825,1743043772297,-500.0,0.00012883,2]
[356727826,1743043772319,-500.0,0.00012883,2]
[356727827,1743043772341,-500.0,0.00012883,2]
[356727828,1743043772366,-119.9917779,0.00012883,2]
[356727857,1743043832542,-380.0082221,0.00012883,2]
[356727858,1743043832554,-500.0,0.00012883,2]
[356727859,1743043832564,-500.0,0.00012883,2]
[356727860,1743043832574,-500.0,0.00012883,2]
[356727861,1743043832587,-421.41441629,0.00012883,2]
[356727862,1743043832597,-500.0,0.00012883,2]
[356727863,1743043832607,-500.0,0.00012883,2]
[356727864,1743043832618,-4099.4327262,0.00012883,2]
[356727865,1743043832628,-24900.0,0.00012884,2]
[356727866,1743043832638,-5340.79238357,0.0001297,2]
[356727867,1743043832648,-501.93897146,0.0001351,2]
[356727868,1743043832659,-500.0,0.0001351,2]
[356727869,1743043832668,-355.45614265,0.00013599,2]
[356727870,1743043832679,-500.0,0.00013673,2]
[356727871,1743043832689,-502.10923942,0.00013673,2]
[356727872,1743043832699,-500.0,0.00013673,2]
[356727873,1743043832709,-503.10277032,0.00013673,2]
[356727874,1743043832719,-500.0,0.00013673,2]
[356727875,1743043832729,-500.0,0.00013673,2]
[356727876,1743043832738,-492.54045865,0.00013673,2]
[356727877,1743043832748,-500.0,0.00013673,2]
[356727878,1743043832757,-273.55055845,0.00013673,2]
[356727879,1743043832767,-500.0,0.00013673,2]
[356727880,1743043832777,-600.0,0.00013691,2]
[356727881,1743043832787,-215.12759774,0.00013698,2]
[356727882,1743043832797,-500.0,0.00013698,2]
[356727883,1743043832806,-500.0,0.00013698,2]
[356727884,1743043832815,-312.74017163,0.00013698,2]
[356727885,1743043832825,-770.992462,0.00013699,2]
[356727886,1743043832835,-500.0,0.00013699,2]
[356727887,1743043832844,-547.16346216,0.00013699,2]
[356727888,1743043832854,-547.16346216,0.00013699,2]
[356727889,1743043832863,-547.16346216,0.00013699,2]
[356727890,1743043832873,-547.16346216,0.00013699,2]
[356727891,1743043832882,-547.16346216,0.00013699,2]
[356727892,1743043832972,-547.16346216,0.00013699,2]
[356727893,1743043832982,-547.16346216,0.00013699,2]
[356727894,1743043832991,-547.16346216,0.00013699,2]
[356727895,1743043833001,-547.16346216,0.00013699,2]
[356727896,1743043833011,-547.16346216,0.00013699,2]
[356727897,1743043833021,-547.16346216,0.00013699,2]
[356727898,1743043833033,-547.16346216,0.00013699,2]
[356727899,1743043833044,-547.16346216,0.00013699,2]
[356727900,1743043833055,-547.16346216,0.00013699,2]
[356727901,1743043833066,-547.16346216,0.00013699,2]
[356727902,1743043833076,-547.16346216,0.00013699,2]
[356727903,1743043833087,-547.16346216,0.00013699,2]
[356727904,1743043833097,-547.16346216,0.00013699,2]
[356727905,1743043833107,-547.16346216,0.00013699,2]
[356727906,1743043833118,-547.16346216,0.00013699,2]
[356727907,1743043833128,-547.16346216,0.00013699,2]
[356727908,1743043833138,-547.16346216,0.00013699,2]
[356727909,1743043833148,-547.16346216,0.00013699,2]
[356727910,1743043833158,-547.16346216,0.00013699,2]
[356727911,1743043833168,-547.16346216,0.00013699,2]
[356727912,1743043833180,-547.16346216,0.00013699,2]
[356727913,1743043833191,-547.16346216,0.00013699,2]
[356727914,1743043833202,-547.16346216,0.00013699,2]
[356727915,1743043833213,-547.16346216,0.00013699,2]
[356727916,1743043833224,-547.16346216,0.00013699,2]
[356727917,1743043833234,-547.16346216,0.00013699,2]
[356727918,1743043833244,-547.16346216,0.00013699,2]
[356727919,1743043833255,-547.16346216,0.00013699,2]
[356727920,1743043833266,-547.16346216,0.00013699,2]
[356727921,1743043833278,-547.16346216,0.00013699,2]
[356727922,1743043833289,-547.16346216,0.00013699,2]
[356727923,1743043833299,-547.16346216,0.00013699,2]
[356727924,1743043833309,-547.16346216,0.00013699,2]
[356727925,1743043833320,-547.16346216,0.00013699,2]
[356727926,1743043833331,-547.16346216,0.00013699,2]
[356727927,1743043833341,-547.16346216,0.00013699,2]
[356727928,1743043833351,-547.16346216,0.00013699,2]
[356727929,1743043833362,-547.16346216,0.00013699,2]
[356727930,1743043833372,-547.16346216,0.00013699,2]
[356727931,1743043833383,-547.16346216,0.00013699,2]
[356727932,1743043833393,-547.16346216,0.00013699,2]
[356727933,1743043833404,-547.16346216,0.00013699,2]
[356727934,1743043833414,-547.16346216,0.00013699,2]
[356727935,1743043833424,-547.16346216,0.00013699,2]
[356727936,1743043833434,-547.16346216,0.00013699,2]
[356727937,1743043833444,-547.16346216,0.00013699,2]
[356727938,1743043833455,-547.16346216,0.00013699,2]
[356727939,1743043833464,-547.16346216,0.00013699,2]
[356727940,1743043833478,-547.16346216,0.00013699,2]
[356727941,1743043833489,-1532.671423,0.00013699,2]
[356727942,1743043833498,-1532.671423,0.00013699,2]
[356727943,1743043833509,-1532.671423,0.00013699,2]
[356727944,1743043833519,-1532.671423,0.00013699,2]
[356727945,1743043833529,-1532.671423,0.00013699,2]
[356727946,1743043833539,-1532.671423,0.00013699,2]
[356727947,1743043833549,-1532.671423,0.00013699,2]
[356727948,1743043833562,-1532.671423,0.00013699,2]
[356727949,1743043833572,-1532.671423,0.00013699,2]
[356727950,1743043833582,-1532.671423,0.00013699,2]
[356727951,1743043833591,-1532.671423,0.00013699,2]
[356727952,1743043833602,-1532.671423,0.00013699,2]
[356727953,1743043833612,-1532.671423,0.00013699,2]
[356727954,1743043833622,-1532.671423,0.00013699,2]
[356727955,1743043833633,-1532.671423,0.00013699,2]
[356727956,1743043833643,-1532.671423,0.00013699,2]
[356727957,1743043833654,-1532.671423,0.00013699,2]
[356727958,1743043833664,-1532.671423,0.00013699,2]
[356727959,1743043833674,-1532.671423,0.00013699,2]
[356727960,1743043833684,-1532.671423,0.00013699,2]
[356727961,1743043833694,-1532.671423,0.00013699,2]
[356727962,1743043833704,-1532.671423,0.00013699,2]
[356727963,1743043833714,-1532.671423,0.00013699,2]
[356727964,1743043833724,-1532.671423,0.00013699,2]
[356727965,1743043833735,-1532.671423,0.00013699,2]
[356727966,1743043833745,-1532.671423,0.00013699,2]
[356727967,1743043833755,-1532.671423,0.00013699,2]
[356727968,1743043833766,-1532.671423,0.00013699,2]
[356727969,1743043833776,-1532.671423,0.00013699,2]
[356727970,1743043833785,-1532.671423,0.00013699,2]
[356727971,1743043833795,-1532.671423,0.00013699,2]
[356727972,1743043833806,-1532.671423,0.00013699,2]
[356727973,1743043833816,-1532.671423,0.00013699,2]
[356727974,1743043833825,-1797.57759485,0.00013699,2]
[356727975,1743043833835,-1797.57759485,0.00013699,2]
[356727976,1743043833844,-1797.57759485,0.00013699,2]
[356727977,1743043833853,-500.0,0.000137,2]
[356727978,1743043833863,-502.98331566,0.000137,2]
[356727979,1743043833873,-500.0,0.000137,2]
[356727980,1743043833883,-500.0,0.000137,2]
[356727981,1743043833891,-500.0,0.000137,2]
[356727982,1743043833899,-622.2,0.00013746,2]
[356727983,1743043833908,-500.0,0.00013775,2]
[356727984,1743043833918,-160.21177579,0.00013775,2]
[356727985,1743043833927,-645.2214,0.00013801,2]
[356727986,1743043833937,-867.8378183,0.00013856,2]
[356727987,1743043833947,-33780.255158,0.00013967,2]
[356727988,1743043833957,-211.53677936,0.00013973,2]
[356727989,1743043833967,-500.0,0.00014,2]
[356727990,1743043833977,-500.0,0.00014,2]
[356727991,1743043833987,-500.0,0.00014,2]
[356727992,1743043833996,-500.0,0.00014363,2]
[356727993,1743043834007,-227.66878698,0.00014873,2]
[356727994,1743043834018,-7016.44047861,0.0001504,2]
[356727995,1743043834029,-208.58882446,0.0001598,2]
[356727996,1743043834039,-355.45614265,0.00016461,2]
[356727997,1743043834049,-500.0,0.0001653,2]
[356727998,1743043834059,-500.0,0.00017237,2]
[356727999,1743043834138,-500.0,0.00017574,2]
[356728000,1743043834149,-1198.48070304,0.000176,2]
[356728001,1743043834158,-1198.48070292,0.000176,2]
[356728002,1743043834168,-1198.48070292,0.000176,2]
[356728003,1743043834178,-1198.48070292,0.000176,2]
[356728004,1743043834188,-1198.48070292,0.00017624,2]
[356728005,1743043834198,-500.0,0.00017764,2]
[356728006,1743043834208,-1198.48070292,0.00018555,2]
[356728007,1743043834218,-500.0,0.00018611,2]
[356728008,1743043834229,-1000.0,0.00019152,2]
[356728009,1743043834238,-516.00904342,0.00019152,2]
[356728010,1743043834248,-1000.0,0.00019152,2]
[356728011,1743043834258,-1000.0,0.00019152,2]
[356728012,1743043834269,-1000.0,0.00019152,2]
[356728013,1743043834280,-502.84009177,0.00019152,2]
[356728014,1743043834290,-1000.0,0.00019179,2]
[356728015,1743043834300,-1000.0,0.00019179,2]
[356728016,1743043834309,-1000.0,0.00019179,2]
[356728017,1743043834319,-418.47884548,0.00019216,2]
[356728018,1743043834329,-160.0,0.00019216,2]
[356728019,1743043834339,-834.95724862,0.00019222,2]
[356728020,1743043834349,-5840.26471162,0.00019222,2]
[356728021,1743043834359,-160.0,0.00019222,2]
[356728022,1743043834368,-160.0,0.00019222,2]
[356728023,1743043834378,-1000.0,0.00019254,2]
[356728024,1743043834388,-500.0,0.00019254,2]
[356728025,1743043834397,-355.45614265,0.00019323,2]
[356728026,1743043834407,-287.13512644,0.00019479,2]
[356728027,1743043834417,-1000.0,0.00019479,2]
[356728028,1743043834427,-1198.48070292,0.00019486,2]
[356728029,1743043834437,-151.0,0.000195,2]
[356728030,1743043834447,-500.0,0.00019787,2]
[356728031,1743043834457,-356.58043419,0.00019962,2]
[356728032,1743043834466,-160.0,0.0002,3]
[356728033,1743043834478,-1198.48070292,0.00020417,2]
[356728034,1743043834487,-500.0,0.00020421,2]
[356728035,1743043834498,-770.992462,0.00020548,2]
[356728036,1743043834507,-1198.48070292,0.00021348,3]
[356728037,1743043834517,-215.76304343,0.00021394,2]
[356728038,1743043834528,-151.0,0.000218,3]
[356728039,1743043834537,-1453.12598308,0.0002207,2]
[356728040,1743043834547,-355.45614265,0.00022184,2]